[Event "TOP 12F 2021"]
[Site "RENNES, France"]
[Date "2021.08.26"]
[Round "1.1"]
[White "Seite, Yamina"]
[Black "Benmesbah, Natacha"]
[Result "0-1"]
[TimeControl "1H30 + 30 sec/coup"]
[WhiteElo "1870"]
[BlackElo "2239"]

1. e4 {[%clk 01:30:56]} {[%emt 00:00:04]} d6 {[%clk 01:30:49]} {[%emt
00:00:12]} 2. d4 {[%clk 01:31:12]} {[%emt 00:00:14]} Nf6 {[%clk 01:31:13]}
{[%emt 00:00:06]} 3. Nc3 {[%clk 01:31:26]} {[%emt 00:00:15]} e5 {[%clk
01:31:36]} {[%emt 00:00:06]} 4. f4 {[%clk 01:29:40]} {[%emt 00:02:17]} Nbd7
{[%clk 01:25:15]} {[%emt 00:06:51]} 5. Nf3 {[%clk 01:26:36]} {[%emt 00:03:34]}
exd4 {[%clk 01:24:16]} {[%emt 00:01:29]} 6. Nxd4 {[%clk 01:23:28]} {[%emt
00:03:38]} Nc5 {[%clk 01:20:32]} {[%emt 00:04:13]} 7. Bc4 {[%clk 01:13:05]}
{[%emt 00:10:53]} Bg4 {[%clk 01:16:18]} {[%emt 00:04:45]} 8. Nf3 {[%clk
01:11:15]} {[%emt 00:02:20]} Be7 {[%clk 01:12:55]} {[%emt 00:03:53]} 9. O-O
{[%clk 01:07:16]} {[%emt 00:04:28]} O-O {[%clk 01:10:54]} {[%emt 00:02:31]} 10.
Qe1 {[%clk 01:01:39]} {[%emt 00:06:07]} c6 {[%clk 01:07:59]} {[%emt 00:03:25]}
11. e5 {[%clk 00:53:21]} {[%emt 00:08:48]} Ne8 {[%clk 00:59:49]} {[%emt
00:08:40]} 12. b4 {[%clk 00:39:07]} {[%emt 00:14:44]} Ne6 {[%clk 00:55:52]}
{[%emt 00:04:27]} 13. a3 {[%clk 00:33:21]} {[%emt 00:06:16]} a5 {[%clk
00:45:00]} {[%emt 00:11:22]} 14. bxa5 {[%clk 00:29:18]} {[%emt 00:04:33]} Qxa5
{[%clk 00:40:14]} {[%emt 00:05:15]} 15. Bd3 {[%clk 00:26:27]} {[%emt 00:03:22]}
Nc5 {[%clk 00:39:24]} {[%emt 00:01:20]} 16. Bd2 {[%clk 00:21:27]} {[%emt
00:05:30]} Nxd3 {[%clk 00:36:44]} {[%emt 00:03:10]} 17. cxd3 {[%clk 00:21:52]}
{[%emt 00:00:05]} dxe5 {[%clk 00:34:40]} {[%emt 00:02:35]} 18. fxe5 {[%clk
00:19:14]} {[%emt 00:03:07]} Rd8 {[%clk 00:32:55]} {[%emt 00:02:14]} 19. Qe4
{[%clk 00:16:38]} {[%emt 00:03:07]} Bh5 {[%clk 00:31:44]} {[%emt 00:01:42]} 20.
e6 {[%clk 00:15:05]} {[%emt 00:02:03]} Bg6 {[%clk 00:32:00]} {[%emt 00:00:14]}
21. exf7+ {[%clk 00:14:39]} {[%emt 00:00:56]} Rxf7 {[%clk 00:32:23]} {[%emt
00:00:06]} 22. Qe6 {[%clk 00:13:35]} {[%emt 00:01:33]} Nc7 {[%clk 00:29:31]}
{[%emt 00:03:21]} 23. Qa2 {[%clk 00:12:01]} {[%emt 00:02:05]} Rxd3 {[%clk
00:22:45]} {[%emt 00:07:17]} 24. Rae1 {[%clk 00:08:12]} {[%emt 00:04:19]} Qxa3
{[%clk 00:19:46]} {[%emt 00:03:29]} 25. Qc4 {[%clk 00:06:21]} {[%emt 00:02:21]}
Qc5+ {[%clk 00:19:49]} {[%emt 00:00:26]} 26. Qxc5 {[%clk 00:06:31]} {[%emt
00:00:20]} Bxc5+ {[%clk 00:20:17]} {[%emt 00:00:02]} 27. Kh1 {[%clk 00:06:30]}
{[%emt 00:00:32]} Rfxf3 {[%clk 00:14:51]} {[%emt 00:05:56]} 28. Rxf3 {[%clk
00:06:33]} {[%emt 00:00:26]} Rxd2 {[%clk 00:15:18]} {[%emt 00:00:04]} 0-1

[Event "TOP 12F 2021"]
[Site "RENNES, France"]
[Date "2021.08.26"]
[Round "1.2"]
[White "Afraoui, Anaelle"]
[Black "Le Marec, Laura"]
[Result "1-0"]
[TimeControl "1H30 + 30 sec/coup"]
[WhiteElo "2118"]
[BlackElo "2118"]

1. e4 {[%clk 01:30:56]} {[%emt 00:00:03]} c5 {[%clk 01:30:53]} {[%emt
00:00:07]} 2. Nf3 {[%clk 01:31:21]} {[%emt 00:00:05]} a6 {[%clk 01:31:13]}
{[%emt 00:00:10]} 3. c4 {[%clk 01:31:46]} {[%emt 00:00:06]} e6 {[%clk
01:31:14]} {[%emt 00:00:29]} 4. Nc3 {[%clk 01:31:48]} {[%emt 00:00:28]} Qc7
{[%clk 01:30:44]} {[%emt 00:00:59]} 5. d4 {[%clk 01:31:45]} {[%emt 00:00:34]}
cxd4 {[%clk 01:30:53]} {[%emt 00:00:21]} 6. Nxd4 {[%clk 01:32:01]} {[%emt
00:00:14]} Nf6 {[%clk 01:30:16]} {[%emt 00:01:07]} 7. Be2 {[%clk 01:31:58]}
{[%emt 00:00:33]} b6 {[%clk 01:29:02]} {[%emt 00:01:44]} 8. O-O {[%clk
01:28:30]} {[%emt 00:03:58]} Bb7 {[%clk 01:28:26]} {[%emt 00:01:06]} 9. Qd3
{[%clk 01:21:20]} {[%emt 00:07:40]} d6 {[%clk 01:20:50]} {[%emt 00:08:05]} 10.
Be3 {[%clk 01:17:20]} {[%emt 00:04:31]} Nbd7 {[%clk 01:18:13]} {[%emt
00:03:07]} 11. Qc2 {[%clk 01:10:14]} {[%emt 00:07:35]} Be7 {[%clk 00:58:09]}
{[%emt 00:20:34]} 12. Rac1 {[%clk 01:00:34]} {[%emt 00:10:11]} O-O {[%clk
00:55:38]} {[%emt 00:03:01]} 13. f3 {[%clk 00:56:20]} {[%emt 00:04:44]} Rac8
{[%clk 00:54:31]} {[%emt 00:01:37]} 14. Rfd1 {[%clk 00:55:01]} {[%emt
00:01:50]} Rfe8 {[%clk 00:47:44]} {[%emt 00:07:17]} 15. Bf1 {[%clk 00:52:19]}
{[%emt 00:03:11]} Qb8 {[%clk 00:43:52]} {[%emt 00:04:22]} 16. Qf2 {[%clk
00:50:41]} {[%emt 00:02:08]} Bd8 {[%clk 00:34:00]} {[%emt 00:10:22]} 17. b3
{[%clk 00:46:15]} {[%emt 00:04:56]} Bc7 {[%clk 00:31:06]} {[%emt 00:03:25]} 18.
Qh4 {[%clk 00:33:35]} {[%emt 00:13:08]} Ne5 {[%clk 00:26:28]} {[%emt 00:05:08]}
19. Nde2 {[%clk 00:27:17]} {[%emt 00:06:48]} Ng6 {[%clk 00:25:29]} {[%emt
00:01:29]} 20. Qh3 {[%clk 00:22:39]} {[%emt 00:05:09]} d5 {[%clk 00:23:40]}
{[%emt 00:02:19]} 21. exd5 {[%clk 00:15:00]} {[%emt 00:08:09]} exd5 {[%clk
00:22:33]} {[%emt 00:01:37]} 22. Bg5 {[%clk 00:15:18]} {[%emt 00:00:12]} dxc4
{[%clk 00:18:47]} {[%emt 00:04:16]} 23. Bxf6 {[%clk 00:15:08]} {[%emt
00:00:40]} gxf6 {[%clk 00:19:03]} {[%emt 00:00:14]} 24. bxc4 {[%clk 00:09:06]}
{[%emt 00:06:31]} Bf4 {[%clk 00:13:11]} {[%emt 00:06:23]} 25. Nxf4 {[%clk
00:06:47]} {[%emt 00:02:49]} Qxf4 {[%clk 00:13:32]} {[%emt 00:00:09]} 26. Qd7
{[%clk 00:05:42]} {[%emt 00:01:34]} Re7 {[%clk 00:09:57]} {[%emt 00:04:05]} 27.
Qd4 {[%clk 00:04:24]} {[%emt 00:01:48]} Qxd4+ {[%clk 00:09:08]} {[%emt
00:01:19]} 28. Rxd4 {[%clk 00:04:50]} {[%emt 00:00:04]} b5 {[%clk 00:06:38]}
{[%emt 00:03:00]} 29. cxb5 {[%clk 00:03:05]} {[%emt 00:02:14]} axb5 {[%clk
00:07:03]} {[%emt 00:00:05]} 30. Ne2 {[%clk 00:02:08]} {[%emt 00:01:27]} Rxc1
{[%clk 00:06:19]} {[%emt 00:01:14]} 31. Nxc1 {[%clk 00:02:37]} {[%emt
00:00:01]} Re1 {[%clk 00:06:39]} {[%emt 00:00:10]} 32. Nb3 {[%clk 00:02:35]}
{[%emt 00:00:32]} Ne5 {[%clk 00:06:14]} {[%emt 00:00:54]} 33. Kf2 {[%clk
00:02:31]} {[%emt 00:00:35]} Rb1 {[%clk 00:05:50]} {[%emt 00:00:54]} 34. Bxb5
{[%clk 00:02:36]} {[%emt 00:00:25]} Kf8 {[%clk 00:03:09]} {[%emt 00:03:11]} 35.
h3 {[%clk 00:02:43]} {[%emt 00:00:23]} Rb2+ {[%clk 00:02:38]} {[%emt 00:01:00]}
36. Rd2 {[%clk 00:03:07]} {[%emt 00:00:06]} Rxd2+ {[%clk 00:02:51]} {[%emt
00:00:17]} 37. Nxd2 {[%clk 00:03:34]} {[%emt 00:00:03]} Nc6 {[%clk 00:02:46]}
{[%emt 00:00:36]} 38. a3 {[%clk 00:01:50]} {[%emt 00:02:14]} Nd4 {[%clk
00:03:00]} {[%emt 00:00:16]} 39. Bd3 {[%clk 00:02:09]} {[%emt 00:00:10]} h6
{[%clk 00:02:40]} {[%emt 00:00:49]} 40. Ke3 {[%clk 00:02:34]} {[%emt 00:00:06]}
Ne6 {[%clk 00:02:32]} {[%emt 00:00:37]} 41. Ne4 {[%clk 00:02:17]} {[%emt
00:00:47]} Ke7 {[%clk 00:02:51]} {[%emt 00:00:12]} 42. Ng3 {[%clk 00:02:32]}
{[%emt 00:00:15]} Kf8 {[%clk 00:01:44]} {[%emt 00:01:38]} 43. Nf5 {[%clk
00:02:51]} {[%emt 00:00:11]} h5 {[%clk 00:02:04]} {[%emt 00:00:10]} 44. Ng3
{[%clk 00:02:47]} {[%emt 00:00:34]} Ng7 {[%clk 00:01:07]} {[%emt 00:01:27]} 45.
a4 {[%clk 00:03:02]} {[%emt 00:00:15]} Ke7 {[%clk 00:01:09]} {[%emt 00:00:28]}
46. Nf5+ {[%clk 00:03:21]} {[%emt 00:00:11]} Nxf5+ {[%clk 00:01:08]} {[%emt
00:00:30]} 47. Bxf5 {[%clk 00:03:48]} {[%emt 00:00:03]} Kd6 {[%clk 00:01:07]}
{[%emt 00:00:31]} 48. Kf4 {[%clk 00:03:48]} {[%emt 00:00:31]} Ba6 {[%clk
00:01:28]} {[%emt 00:00:09]} 49. h4 {[%clk 00:03:59]} {[%emt 00:00:18]} Bf1
{[%clk 00:01:29]} {[%emt 00:00:29]} 50. g4 {[%clk 00:04:24]} {[%emt 00:00:05]}
hxg4 {[%clk 00:01:33]} {[%emt 00:00:26]} 51. fxg4 {[%clk 00:04:49]} {[%emt
00:00:05]} Ke7 {[%clk 00:00:59]} {[%emt 00:01:04]} 52. h5 {[%clk 00:05:12]}
{[%emt 00:00:07]} Ba6 {[%clk 00:00:53]} {[%emt 00:00:36]} 53. h6 {[%clk
00:05:16]} {[%emt 00:00:26]} Kf8 {[%clk 00:01:15]} {[%emt 00:00:07]} 54. Ke4
{[%clk 00:05:31]} {[%emt 00:00:14]} Bb7+ {[%clk 00:00:40]} {[%emt 00:01:05]} 55.
Kd4 {[%clk 00:05:54]} {[%emt 00:00:07]} Kg8 {[%clk 00:00:52]} {[%emt 00:00:18]}
56. a5 {[%clk 00:06:10]} {[%emt 00:00:14]} Ba6 {[%clk 00:00:44]} {[%emt
00:00:38]} 57. Kc5 {[%clk 00:06:34]} {[%emt 00:00:06]} Kf8 {[%clk 00:00:48]}
{[%emt 00:00:27]} 58. Kb6 {[%clk 00:06:22]} {[%emt 00:00:42]} Bc4 {[%clk
00:01:03]} {[%emt 00:00:14]} 59. a6 {[%clk 00:06:29]} {[%emt 00:00:24]} Bxa6
{[%clk 00:01:07]} {[%emt 00:00:26]} 60. Kxa6 {[%clk 00:06:55]} {[%emt
00:00:05]} Kg8 {[%clk 00:01:33]} {[%emt 00:00:03]} 61. Kb6 {[%clk 00:07:16]}
{[%emt 00:00:09]} Kh8 {[%clk 00:01:59]} {[%emt 00:00:04]} 62. Kc7 {[%clk
00:07:43]} {[%emt 00:00:03]} Kg8 {[%clk 00:02:25]} {[%emt 00:00:04]} 63. Kd7
{[%clk 00:08:08]} {[%emt 00:00:04]} Kh8 {[%clk 00:02:42]} {[%emt 00:00:13]} 64.
Ke7 {[%clk 00:08:30]} {[%emt 00:00:08]} Kg8 {[%clk 00:03:08]} {[%emt 00:00:04]}
65. h7+ {[%clk 00:08:26]} {[%emt 00:00:34]} Kh8 {[%clk 00:03:33]} {[%emt
00:00:05]} 66. Bc8 {[%clk 00:08:46]} {[%emt 00:00:10]} Kxh7 {[%clk 00:00:57]}
{[%emt 00:03:06]} 67. Kxf7 {[%clk 00:09:09]} {[%emt 00:00:07]} Kh8 {[%clk
00:01:05]} {[%emt 00:00:22]} 68. Kxf6 {[%clk 00:09:35]} {[%emt 00:00:04]} 1-0

[Event "TOP 12F 2021"]
[Site "RENNES, France"]
[Date "2021.08.26"]
[Round "1.3"]
[White "Bonvalot, Isabelle"]
[Black "Girod, Sarah"]
[Result "1-0"]
[TimeControl "1H30 + 30 sec/coup"]
[WhiteElo "1831"]
[BlackElo "1504"]

1. e4 {[%clk 01:30:57]} {[%emt 00:00:02]} e5 {[%clk 01:30:55]} {[%emt
00:00:06]} 2. Bc4 {[%clk 01:31:23]} {[%emt 00:00:05]} Nf6 {[%clk 01:30:22]}
{[%emt 00:01:03]} 3. Nc3 {[%clk 01:31:48]} {[%emt 00:00:05]} Bc5 {[%clk
01:27:54]} {[%emt 00:02:58]} 4. f4 {[%clk 01:31:06]} {[%emt 00:01:12]} d6
{[%clk 01:27:32]} {[%emt 00:00:52]} 5. Nf3 {[%clk 01:31:24]} {[%emt 00:00:12]}
Nc6 {[%clk 01:22:59]} {[%emt 00:05:03]} 6. d3 {[%clk 01:30:35]} {[%emt
00:01:18]} Be6 {[%clk 01:17:18]} {[%emt 00:06:11]} 7. Bxe6 {[%clk 01:25:07]}
{[%emt 00:05:59]} fxe6 {[%clk 01:17:42]} {[%emt 00:00:06]} 8. Na4 {[%clk
01:25:23]} {[%emt 00:00:14]} exf4 {[%clk 01:09:19]} {[%emt 00:08:53]} 9. Nxc5
{[%clk 01:25:08]} {[%emt 00:00:45]} dxc5 {[%clk 01:09:43]} {[%emt 00:00:06]} 10.
Bxf4 {[%clk 01:25:21]} {[%emt 00:00:17]} Qe7 {[%clk 01:09:53]} {[%emt
00:00:20]} 11. O-O {[%clk 01:17:26]} {[%emt 00:08:25]} e5 {[%clk 01:04:52]}
{[%emt 00:05:32]} 12. Bg3 {[%clk 01:10:45]} {[%emt 00:07:10]} Nh5 {[%clk
01:04:52]} {[%emt 00:00:30]} 13. Bh4 {[%clk 01:09:43]} {[%emt 00:01:32]} Qd7
{[%clk 01:02:55]} {[%emt 00:02:27]} 14. Kh1 {[%clk 01:05:34]} {[%emt 00:04:39]}
Nf6 {[%clk 01:00:33]} {[%emt 00:02:53]} 15. Qe1 {[%clk 01:03:07]} {[%emt
00:02:57]} O-O-O {[%clk 00:52:42]} {[%emt 00:08:21]} 16. Qc3 {[%clk 01:00:08]}
{[%emt 00:03:29]} Qd6 {[%clk 00:53:00]} {[%emt 00:00:12]} 17. a4 {[%clk
00:57:01]} {[%emt 00:03:36]} h6 {[%clk 00:51:34]} {[%emt 00:01:56]} 18. a5
{[%clk 00:57:06]} {[%emt 00:00:25]} a6 {[%clk 00:51:40]} {[%emt 00:00:25]} 19.
Bg3 {[%clk 00:53:10]} {[%emt 00:04:26]} Ng4 {[%clk 00:50:57]} {[%emt 00:01:13]}
20. h3 {[%clk 00:49:57]} {[%emt 00:03:42]} Ne3 {[%clk 00:51:19]} {[%emt
00:00:08]} 21. Rf2 {[%clk 00:46:28]} {[%emt 00:03:58]} Qg6 {[%clk 00:45:13]}
{[%emt 00:06:36]} 22. Bxe5 {[%clk 00:31:50]} {[%emt 00:15:09]} Nxe5 {[%clk
00:43:38]} {[%emt 00:02:05]} 23. Qxe5 {[%clk 00:31:01]} {[%emt 00:01:18]} c4
{[%clk 00:37:24]} {[%emt 00:06:45]} 24. Qf4 {[%clk 00:29:03]} {[%emt 00:02:27]}
Nxg2 {[%clk 00:27:56]} {[%emt 00:09:58]} 25. Rxg2 {[%clk 00:29:09]} {[%emt
00:00:25]} Qc6 {[%clk 00:27:36]} {[%emt 00:00:50]} 26. Ne5 {[%clk 00:20:50]}
{[%emt 00:08:49]} Qe8 {[%clk 00:21:27]} {[%emt 00:06:39]} 27. Nf7 {[%clk
00:20:13]} {[%emt 00:01:06]} Rf8 {[%clk 00:21:42]} {[%emt 00:00:15]} 28. Qg4+
{[%clk 00:20:26]} {[%emt 00:00:17]} Rd7 {[%clk 00:22:06]} {[%emt 00:00:07]} 29.
e5 {[%clk 00:16:04]} {[%emt 00:04:51]} h5 {[%clk 00:22:31]} {[%emt 00:00:05]}
30. Qxc4 {[%clk 00:12:51]} {[%emt 00:03:43]} Qxf7 {[%clk 00:20:49]} {[%emt
00:02:12]} 31. e6 {[%clk 00:12:51]} {[%emt 00:00:29]} Qf3 {[%clk 00:13:43]}
{[%emt 00:07:36]} 32. exd7+ {[%clk 00:12:54]} {[%emt 00:00:27]} Kxd7 {[%clk
00:14:08]} {[%emt 00:00:05]} 33. Qh4 {[%clk 00:11:38]} {[%emt 00:01:46]} g5
{[%clk 00:12:37]} {[%emt 00:02:01]} 34. Qg3 {[%clk 00:10:31]} {[%emt 00:01:37]}
Qf5 {[%clk 00:12:18]} {[%emt 00:00:49]} 35. Re1 {[%clk 00:10:24]} {[%emt
00:00:36]} Qxa5 {[%clk 00:12:05]} {[%emt 00:00:44]} 36. Qe3 {[%clk 00:08:12]}
{[%emt 00:02:41]} Qd5 {[%clk 00:09:23]} {[%emt 00:03:12]} 37. Qe7+ {[%clk
00:08:22]} {[%emt 00:00:20]} 1-0

[Event "TOP 12F 2021"]
[Site "RENNES, France"]
[Date "2021.08.26"]
[Round "1.4"]
[White "Langer, Karele"]
[Black "Demais, Eilean"]
[Result "1/2-1/2"]
[TimeControl "1H30 + 30 sec/coup"]
[WhiteElo "1320"]
[BlackElo "1463"]

1. d4 {[%clk 01:30:57]} {[%emt 00:00:02]} Nf6 {[%clk 01:30:51]} {[%emt
00:00:10]} 2. c4 {[%clk 01:31:15]} {[%emt 00:00:12]} c5 {[%clk 01:31:00]}
{[%emt 00:00:20]} 3. e3 {[%clk 01:30:08]} {[%emt 00:01:38]} g6 {[%clk
01:30:45]} {[%emt 00:00:44]} 4. Nf3 {[%clk 01:27:52]} {[%emt 00:02:46]} Bg7
{[%clk 01:29:56]} {[%emt 00:01:19]} 5. Be2 {[%clk 01:22:20]} {[%emt 00:06:02]}
O-O {[%clk 01:26:49]} {[%emt 00:03:35]} 6. O-O {[%clk 01:21:13]} {[%emt
00:01:39]} b6 {[%clk 01:20:53]} {[%emt 00:06:25]} 7. dxc5 {[%clk 01:09:51]}
{[%emt 00:11:53]} bxc5 {[%clk 01:19:36]} {[%emt 00:01:47]} 8. Ne5 {[%clk
01:05:09]} {[%emt 00:05:12]} Ne4 {[%clk 01:15:04]} {[%emt 00:05:02]} 9. Qd5
{[%clk 01:02:50]} {[%emt 00:02:49]} Bxe5 {[%clk 01:10:57]} {[%emt 00:04:37]} 10.
Qxe5 {[%clk 01:00:31]} {[%emt 00:02:49]} Bb7 {[%clk 01:07:33]} {[%emt
00:03:55]} 11. f3 {[%clk 00:56:57]} {[%emt 00:04:04]} d6 {[%clk 01:03:42]}
{[%emt 00:04:21]} 12. Qf4 {[%clk 00:55:18]} {[%emt 00:02:07]} Nf6 {[%clk
00:53:06]} {[%emt 00:11:07]} 13. b3 {[%clk 00:51:42]} {[%emt 00:04:06]} Nbd7
{[%clk 00:46:35]} {[%emt 00:07:01]} 14. Bb2 {[%clk 00:49:54]} {[%emt 00:02:18]}
Ne5 {[%clk 00:40:10]} {[%emt 00:06:55]} 15. Bxe5 {[%clk 00:37:57]} {[%emt
00:12:28]} Nh5 {[%clk 00:36:08]} {[%emt 00:04:32]} 16. Qg5 {[%clk 00:32:10]}
{[%emt 00:06:15]} f6 {[%clk 00:33:29]} {[%emt 00:03:11]} 17. Bxf6 {[%clk
00:32:19]} {[%emt 00:00:20]} exf6 {[%clk 00:31:37]} {[%emt 00:02:23]} 18. Qh4
{[%clk 00:30:53]} {[%emt 00:01:56]} Qe7 {[%clk 00:28:44]} {[%emt 00:03:22]} 19.
e4 {[%clk 00:25:59]} {[%emt 00:05:25]} Qe5 {[%clk 00:24:53]} {[%emt 00:04:20]}
20. Na3 {[%clk 00:22:17]} {[%emt 00:04:12]} Qb2 {[%clk 00:19:03]} {[%emt
00:06:20]} 21. Nb5 {[%clk 00:16:07]} {[%emt 00:06:40]} Qxe2 {[%clk 00:18:44]}
{[%emt 00:00:49]} 22. Nxd6 {[%clk 00:14:47]} {[%emt 00:01:50]} Bc6 {[%clk
00:17:22]} {[%emt 00:01:53]} 23. Qg4 {[%clk 00:14:16]} {[%emt 00:01:00]} Rad8
{[%clk 00:14:49]} {[%emt 00:03:02]} 24. Qe6+ {[%clk 00:09:46]} {[%emt
00:05:03]} Kg7 {[%clk 00:12:54]} {[%emt 00:02:24]} 25. Qe7+ {[%clk 00:07:13]}
{[%emt 00:03:03]} Kg8 {[%clk 00:09:58]} {[%emt 00:03:26]} 26. Qe6+ {[%clk
00:07:23]} {[%emt 00:00:20]} Kg7 {[%clk 00:10:05]} {[%emt 00:00:22]} 27. Qe7+
{[%clk 00:07:43]} {[%emt 00:00:11]} Kg8 {[%clk 00:08:55]} {[%emt 00:01:40]} 28.
Qe6+ {[%clk 00:08:02]} {[%emt 00:00:11]} 1/2-1/2

[Event "TOP 12F 2021"]
[Site "RENNES, France"]
[Date "2021.08.26"]
[Round "1.5"]
[White "Guichard, Pauline"]
[Black "Vega Gutierrez, Sabrina"]
[Result "0-1"]
[TimeControl "1H30 + 30 sec/coup"]
[WhiteElo "2414"]
[BlackElo "2392"]

1. d4 {[%clk 01:30:56]} {[%emt 00:00:03]} d5 {[%clk 01:30:48]} {[%emt
00:00:12]} 2. c4 {[%clk 01:31:18]} {[%emt 00:00:08]} e6 {[%clk 01:31:09]}
{[%emt 00:00:10]} 3. Nc3 {[%clk 01:31:35]} {[%emt 00:00:13]} Nf6 {[%clk
01:31:23]} {[%emt 00:00:15]} 4. Nf3 {[%clk 01:31:36]} {[%emt 00:00:29]} a6
{[%clk 01:31:09]} {[%emt 00:00:44]} 5. c5 {[%clk 01:30:29]} {[%emt 00:01:38]}
b6 {[%clk 01:30:38]} {[%emt 00:01:01]} 6. cxb6 {[%clk 01:30:22]} {[%emt
00:00:36]} cxb6 {[%clk 01:20:21]} {[%emt 00:10:47]} 7. Bf4 {[%clk 01:30:32]}
{[%emt 00:00:20]} Bb7 {[%clk 01:18:30]} {[%emt 00:02:20]} 8. e3 {[%clk
01:29:05]} {[%emt 00:01:58]} Bd6 {[%clk 01:18:38]} {[%emt 00:00:22]} 9. Bd3
{[%clk 01:24:02]} {[%emt 00:05:34]} O-O {[%clk 01:17:56]} {[%emt 00:01:12]} 10.
O-O {[%clk 01:24:09]} {[%emt 00:00:23]} b5 {[%clk 01:05:52]} {[%emt 00:12:33]}
11. a4 {[%clk 01:19:28]} {[%emt 00:05:10]} Bxf4 {[%clk 01:02:16]} {[%emt
00:04:06]} 12. exf4 {[%clk 01:19:47]} {[%emt 00:00:12]} b4 {[%clk 01:02:35]}
{[%emt 00:00:11]} 13. Na2 {[%clk 01:17:51]} {[%emt 00:02:27]} Qd6 {[%clk
01:00:51]} {[%emt 00:02:13]} 14. g3 {[%clk 01:13:55]} {[%emt 00:04:26]} Nc6
{[%clk 00:52:16]} {[%emt 00:09:05]} 15. Nc1 {[%clk 01:11:07]} {[%emt 00:03:19]}
Na5 {[%clk 00:51:01]} {[%emt 00:01:45]} 16. Nb3 {[%clk 01:10:56]} {[%emt
00:00:41]} Nxb3 {[%clk 00:49:44]} {[%emt 00:01:47]} 17. Qxb3 {[%clk 01:11:11]}
{[%emt 00:00:12]} a5 {[%clk 00:49:33]} {[%emt 00:00:45]} 18. Rfc1 {[%clk
01:05:02]} {[%emt 00:06:39]} Rfc8 {[%clk 00:49:19]} {[%emt 00:00:43]} 19. Bb5
{[%clk 00:57:20]} {[%emt 00:08:13]} Rc7 {[%clk 00:48:01]} {[%emt 00:01:48]} 20.
Qd1 {[%clk 00:48:04]} {[%emt 00:09:47]} Rac8 {[%clk 00:47:44]} {[%emt
00:00:46]} 21. Nd2 {[%clk 00:47:38]} {[%emt 00:00:56]} Qb6 {[%clk 00:41:08]}
{[%emt 00:07:05]} 22. Nb3 {[%clk 00:37:35]} {[%emt 00:10:34]} Ne4 {[%clk
00:41:13]} {[%emt 00:00:25]} 23. Rxc7 {[%clk 00:37:41]} {[%emt 00:00:24]} Rxc7
{[%clk 00:41:17]} {[%emt 00:00:25]} 24. Rc1 {[%clk 00:37:10]} {[%emt 00:01:02]}
g6 {[%clk 00:36:48]} {[%emt 00:04:58]} 25. Rc2 {[%clk 00:36:01]} {[%emt
00:01:39]} Nd6 {[%clk 00:33:50]} {[%emt 00:03:29]} 26. Rc5 {[%clk 00:30:03]}
{[%emt 00:06:28]} Ne4 {[%clk 00:33:34]} {[%emt 00:00:45]} 27. Rc2 {[%clk
00:26:17]} {[%emt 00:04:16]} Nd6 {[%clk 00:33:55]} {[%emt 00:00:09]} 28. Rxc7
{[%clk 00:25:54]} {[%emt 00:00:54]} Qxc7 {[%clk 00:34:16]} {[%emt 00:00:09]} 29.
Nc5 {[%clk 00:26:13]} {[%emt 00:00:11]} Nf5 {[%clk 00:21:57]} {[%emt 00:12:49]}
30. h4 {[%clk 00:22:19]} {[%emt 00:04:24]} Bc6 {[%clk 00:20:54]} {[%emt
00:01:33]} 31. Bf1 {[%clk 00:22:05]} {[%emt 00:00:45]} Qe7 {[%clk 00:20:11]}
{[%emt 00:01:12]} 32. Bh3 {[%clk 00:21:24]} {[%emt 00:01:12]} Nd6 {[%clk
00:20:04]} {[%emt 00:00:36]} 33. Qe2 {[%clk 00:20:40]} {[%emt 00:01:14]} Ne4
{[%clk 00:18:50]} {[%emt 00:01:44]} 34. Nxe4 {[%clk 00:08:01]} {[%emt
00:13:09]} dxe4 {[%clk 00:19:16]} {[%emt 00:00:04]} 35. Bg2 {[%clk 00:08:03]}
{[%emt 00:00:28]} Qd7 {[%clk 00:18:21]} {[%emt 00:01:25]} 36. Qc4 {[%clk
00:02:01]} {[%emt 00:06:32]} Bd5 {[%clk 00:17:00]} {[%emt 00:01:50]} 37. Qe2
{[%clk 00:00:33]} {[%emt 00:01:59]} Qxa4 {[%clk 00:16:40]} {[%emt 00:00:49]} 38.
h5 {[%clk 00:00:59]} {[%emt 00:00:05]} Qb3 {[%clk 00:13:46]} {[%emt 00:03:24]}
39. h6 {[%clk 00:00:43]} {[%emt 00:00:47]} Qd3 {[%clk 00:13:46]} {[%emt
00:00:28]} 40. Qe1 {[%clk 00:00:44]} {[%emt 00:00:29]} Qc2 {[%clk 00:08:58]}
{[%emt 00:05:19]} 41. f5 {[%clk 00:00:39]} {[%emt 00:00:36]} exf5 {[%clk
00:05:10]} {[%emt 00:04:17]} 42. Bf1 {[%clk 00:00:36]} {[%emt 00:00:33]} f4
{[%clk 00:03:16]} {[%emt 00:02:24]} 43. gxf4 {[%clk 00:00:38]} {[%emt
00:00:28]} Qxb2 {[%clk 00:03:38]} {[%emt 00:00:07]} 44. f5 {[%clk 00:00:38]}
{[%emt 00:00:31]} Qc3 {[%clk 00:02:15]} {[%emt 00:01:53]} 45. Qe2 {[%clk
00:00:51]} {[%emt 00:00:18]} Qc6 {[%clk 00:01:23]} {[%emt 00:01:21]} 46. Qg4
{[%clk 00:00:39]} {[%emt 00:00:42]} Qd6 {[%clk 00:00:33]} {[%emt 00:01:19]} 47.
Bg2 {[%clk 00:01:00]} {[%emt 00:00:10]} b3 {[%clk 00:00:38]} {[%emt 00:00:25]}
48. Bxe4 {[%clk 00:00:58]} {[%emt 00:00:32]} b2 {[%clk 00:00:32]} {[%emt
00:00:36]} 49. Bb1 {[%clk 00:00:34]} {[%emt 00:00:53]} Qc6 {[%clk 00:00:33]}
{[%emt 00:00:29]} 50. Qe2 {[%clk 00:00:33]} {[%emt 00:00:31]} Qc1+ {[%clk
00:00:52]} {[%emt 00:00:11]} 51. Kh2 {[%clk 00:00:53]} {[%emt 00:00:10]} Qxh6+
{[%clk 00:01:00]} {[%emt 00:00:21]} 52. Kg3 {[%clk 00:01:19]} {[%emt 00:00:04]}
Qg5+ {[%clk 00:01:20]} {[%emt 00:00:10]} 53. Kh3 {[%clk 00:01:44]} {[%emt
00:00:06]} Qg2+ {[%clk 00:01:15]} {[%emt 00:00:35]} 54. Kh4 {[%clk 00:02:06]}
{[%emt 00:00:07]} g5+ {[%clk 00:01:36]} {[%emt 00:00:09]} 0-1